Cogmind - Beta 9 *** ADVENTURER MODE // 2019.10.27 @ 21:53:54 Player: Nanni Result: Destroyed by H-55 Commando with Gauss Rifle Performance ------------- Evolutions (2) 1000 Regions Visited (3) 600 Robots Destroyed (39) 195 Value Destroyed (1333) 1333 Prototype IDs (0) 0 Alien Tech Used (0) 0 Bonus (33) 33 TOTAL SCORE: 3161 Bonus ------- High Alert Combat Kills 33 Cogmind --------- Core Integrity 0/550 Matter 300/300 Energy 100/100 System Corruption 0% Temperature Cool (0) Location -8/Materials Parts ------- Power (1) Propulsion (2) Utility (4) High-capacity Storage Unit High-capacity Storage Unit Weapon (4) Inventory (20) High-capacity Storage Unit Peak State ------------ Power Ion Engine Propulsion Aluminum Leg Aluminum Leg Utility High-capacity Storage Unit Improved Sensor Array Heavy Armor Plating Weapon Medium Laser Assault Rifle Light Assault Rifle Rocket Launcher Inventory Light Deuterium Engine Light Deuterium Engine Aluminum Leg Aluminum Leg High-capacity Storage Unit High-capacity Storage Unit Heavy EM Pulse Gun Particle Gun Pulse Rifle Electrolaser [Rating: 19] Favorites ----------- Power Ion Engine Engine Ion Engine Propulsion Aluminum Leg Leg Aluminum Leg Utility High-capacity Storage Unit Device Improved Sensor Array Storage High-capacity Storage Unit Protection Heavy Armor Plating Weapon Assault Rifle Energy Gun Medium Laser Energy Cannon Ion Cannon Ballistic Gun Assault Rifle Launcher Rocket Launcher Build | -11 -10 -9 -8 ------- Run | Scr Mat Mat Mat Slots Evolved 4 | . . 2 2 Power . | . . . . Propulsion . | . . . . Utility 2 | . . . 2 Weapon 2 | . . 2 . Parts Attached 28 | 5 2 8 13 Power 4 | 1 . 1 2 Engine 4 | 1 . 1 2 Core . | . . . . Reactor . | . . . . Propulsion 7 | 2 . 2 3 Treads . | . . . . Leg 7 | 2 . 2 3 Wheel . | . . . . Hover . | . . . . Flight . | . . . . Utility 5 | . 2 . 3 Device 2 | . 1 . 1 Storage 2 | . 1 . 1 Processor . | . . . . Hackware . | . . . . Protection 1 | . . . 1 Artifact . | . . . . Weapon 12 | 2 . 5 5 Energy Gun 5 | . . 2 3 Energy Cannon 1 | . . . 1 Ballistic Gun 5 | 2 . 2 1 Ballistic Cannon . | . . . . Launcher 1 | . . 1 . Special Weapon . | . . . . Impact Weapon . | . . . . Slashing Weapon . | . . . . Piercing Weapon . | . . . . Special Melee Weapon . | . . . . Unidentified Prototypes . | . . . . Parts Lost 21 | . . 1 20 Power 3 | . . . 3 Propulsion 5 | . . . 5 Utility 3 | . . . 3 Weapon 10 | . . 1 9 Highest Loss Streak 18 | . . 1 18 Average Slot Usage (%) 90 | . 97 98 76 Engine 10 | . 14 10 8 Leg 20 | . 28 21 15 Device 10 | . 13 11 7 Storage 11 | . 11 11 10 Protection 2 | . . . 6 Energy Gun 12 | . . 20 7 Ballistic Gun 20 | . 28 21 14 Launcher 2 | . . . 6 Naked Turns . | . . . . Heaviest Build 75 | 9 42 47 75 Greatest Support 20 | 10 20 20 20 Greatest Overweight (x) 23 | . 2 2 23 Average Overweight (x) 2 | . 1 2 3 Largest Inventory Capacity 20 | 4 12 12 20 Average Capacity 12 | 4 10 12 13 Most Carried 12 | 4 7 12 12 Average Carried 8 | 2 4 9 8 Final Capacity 20 | . . . 20 Final Carried 1 | . . . 1 Class Distribution -------------------- 46% | Skirmisher 23% | Mutant 22% | Tank 6% | Hauler-Mutant Dominant Class ---------------- Mutant | -10/Materials Skirmisher | -9/Materials Tank | -8/Materials Resources | -11 -10 -9 -8 ----------- Run | Scr Mat Mat Mat Matter Collected 897 | 242 81 182 392 Remotely . | . . . . Salvage Created 1342 | . 109 390 843 Parts 88 | . 8 30 50 Haulers Intercepted . | . . . . Recyclers Shooed . | . . . . Parts Field Recycled . | . . . . Retrieved Matter . | . . . . Parts Self-Destructed . | . . . . Prevented . | . . . . Kills | -11 -10 -9 -8 ------- Run | Scr Mat Mat Mat Combat Hostiles Destroyed 32 | . 5 10 17 Guns 23 | . 4 10 9 Cannons 2 | . . . 2 AOE 7 | . 1 . 6 Classes Destroyed 9 | . 2 2 5 Worker 2 | . . . 2 Recycler 2 | . . . 2 Mechanic 1 | . . . 1 Watcher 2 | . . 1 1 Swarmer 6 | . 3 3 . Grunt 16 | . 2 5 9 Duelist 2 | . . . 2 Sentry 6 | . . 2 4 Hunter 2 | . . . 2 Best Kill Streak 12 | . 3 3 12 Combat Bots Only 6 | . 3 3 6 Max Kills in Single Turn 2 | . 2 1 2 Gunslinging 1 | . 1 . . Exploded 1 | . 1 . 1 Melee . | . . . . Uniques/NPCs Destroyed . | . . . . Combat | -11 -10 -9 -8 -------- Run | Scr Mat Mat Mat Damage Taken 2593 | . 206 192 2195 Core 658 | . 49 46 563 Absorbed by Shields 39 | . . . 39 Core Remaining (%) 89 | 100 80 88 . Volleys Fired 89 | . 13 15 61 Largest 4 | . 2 4 4 Hottest 191 | . 40 130 191 Shots Fired 214 | . 26 60 128 Gun 190 | . 26 58 106 Cannon 5 | . . . 5 Launcher 19 | . . 2 17 Special . | . . . . Kinetic 132 | . 26 30 76 Thermal 61 | . . 28 33 Explosive 19 | . . 2 17 Electromagnetic 2 | . . . 2 Robot Hit Streak 32 | . 5 14 32 Robot Miss Streak 3 | . 3 2 3 Penetration Max . | . . . . Secondary Targets 6 | . 3 2 1 Max Gunslinging Chain 1 | . 1 1 1 Shots Hit Robots 141 | . 16 34 91 Core Hits 79 | . 6 20 53 Critical Hits 3 | . . . 3 Critical Kills 1 | . . . 1 Critical Parts Destroyed 2 | . . . 2 Melee Attacks . | . . . . Impact . | . . . . Slashing . | . . . . Piercing . | . . . . Sneak Attacks . | . . . . Combat Hostiles . | . . . . Follow-up Attacks . | . . . . Damage Inflicted 2510 | . 201 392 1917 Guns 1448 | . 201 332 915 Cannons 116 | . . . 116 Explosions 946 | . . 60 886 Melee . | . . . . Ramming . | . . . . Kinetic 1152 | . 201 241 710 Thermal 448 | . . 91 357 Explosive 894 | . . 60 834 Electromagnetic 16 | . . . 16 Impact . | . . . . Slashing . | . . . . Piercing . | . . . . Highest Corruption 1 | . . 1 . Average Corruption 1 | . . 1 . Corruption Purged . | . . . . Overload Shots . | . . . . Overflow Damage 30 | . . . 30 Projectiles . | . . . . Explosions 30 | . . . 30 Melee . | . . . . Knockbacks . | . . . . Impact . | . . . . Kinetic . | . . . . Secondary . | . . . . Self-Inflicted Damage 68 | . . . 68 Shots 3 | . . . 3 Rammed . | . . . . Targets Rammed . | . . . . Kicked . | . . . . Crushed . | . . . . Highest Temperature 540 | . . 178 540 Average Temperature 127 | . . 70 152 Received Heat Transfer 1063 | . 30 66 967 Effects 9 | . . . 9 Shutdowns 2 | . . . 2 Energy Bleed 1 | . . . 1 Interference 3 | . . . 3 Matter Decay 1 | . . . 1 Damage (minor) 1 | . . . 1 Damage (major) 1 | . . . 1 Siege Activations . | . . . . Robots Corrupted . | . . . . Combat Hostiles . | . . . . Parts Fried . | . . . . Impact Corruptions . | . . . . Robots Melted . | . . . . Combat Hostiles . | . . . . Parts Melted . | . . . . Heat Transferred 952 | . . 236 716 Parts Sabotaged . | . . . . Parts Stolen . | . . . . Parts Stripped . | . . . . Power Chain Reactions 1 | . . . 1 Missiles Intercepted . | . . . . Alert | -11 -10 -9 -8 ------- Run | Scr Mat Mat Mat Peak Influence 464 | . 149 165 464 Average Influence 117 | . 78 78 203 Maximum Alert Level 2 | . . . 2 Low Security (%) 80 | . . . . Level 1 18 | . . . . Level 2 . | . . . . Level 3 . | . . . . Level 4 . | . . . . Level 5 . | . . . . High Security . | . . . . Max Security . | . . . . Squads Dispatched 4 | . . 1 3 Investigation . | . . . . Extermination . | . . . . Reinforcement 4 | . . 1 3 Assault . | . . . . Garrison . | . . . . Intercept . | . . . . Construction Impeded 1 | . . . 1 Haulers Reinforced . | . . . . Stealth | -11 -10 -9 -8 --------- Run | Scr Mat Mat Mat Distress Signals 5 | . 1 3 1 Communications Jammed . | . . . . Distress Signals . | . . . . Times Spotted 47 | . 7 19 21 Peak Tracking Total 5 | . 4 5 5 Tactical Retreats 1 | . . 1 . Traps | -11 -10 -9 -8 ------- Run | Scr Mat Mat Mat Traps Triggered 1 | . . 1 . Indirectly . | . . . . Trap Hack Attempts . | . . . . Triggered . | . . . . Disarmed . | . . . . Reprogrammed . | . . . . Reused . | . . . . Traps Extracted . | . . . . Installed . | . . . . Triggered . | . . . . Machines | -11 -10 -9 -8 ---------- Run | Scr Mat Mat Mat Machines Disabled 7 | . 1 . 6 Max in Single Turn 2 | . 1 . 2 Machines Sabotaged . | . . . . Garrisons Compromised . | . . . . Overloaded Fab Kills . | . . . . Fab Network Shutdowns . | . . . . Hacking | -11 -10 -9 -8 --------- Run | Scr Mat Mat Mat Machines Accessed 4 | . 1 2 1 Terminals 3 | . 1 1 1 Fabricators . | . . . . Repair Stations 1 | . . 1 . Recycling Units . | . . . . Scanalyzers . | . . . . Garrison Access . | . . . . Total Hacks 21 | . 1 14 6 Successful 16 | . . 12 4 Failed 5 | . 1 2 2 Catastrophic . | . . . . Database Lockouts . | . . . . Manual . | . . . . Terminals 8 | . 1 1 6 Fabricators . | . . . . Repair Stations 13 | . . 13 . Recycling Units . | . . . . Scanalyzers . | . . . . Garrison Access . | . . . . Terminal Hacks 5 | . . 1 4 Record 4 | . . . 4 Zone Layout 1 | . . 1 . Fabricator Hacks . | . . . . Repair Station Hacks 11 | . . 11 . Scan Component 6 | . . 6 . Repair 5 | . . 5 . Recycling Unit Hacks . | . . . . Scanalyzer . | . . . . Garrison Access Hacks . | . . . . Unauthorized Hacks . | . . . . Terminals . | . . . . Fabricators . | . . . . Repair Stations . | . . . . Recycling Units . | . . . . Scanalyzers . | . . . . Garrison Access . | . . . . Data Cores Recovered . | . . . . Used . | . . . . Hacking Detections 2 | . . 1 1 Full Trace Events 1 | . . 1 . Feedback Events . | . . . . Feedback Blocked . | . . . . Robot Schematics Acquired . | . . . . Robots Built . | . . . . Matter . | . . . . Time . | . . . . Total Robot Build Rating . | . . . . Part Schematics Acquired . | . . . . Parts Built . | . . . . Matter . | . . . . Time . | . . . . Total Part Build Rating . | . . . . Parts Repaired 5 | . . 5 . Time 130 | . . 130 . Parts Recycled . | . . . . Recycled Matter . | . . . . Retrieved Matter . | . . . . Retrieved Components . | . . . . Parts Scanalyzed . | . . . . Part Schematics Acquired . | . . . . Parts Damaged . | . . . . Bothacking | -11 -10 -9 -8 ------------ Run | Scr Mat Mat Mat Used RIF Installer . | . . . . Robots Hacked . | . . . . Non-combat . | . . . . Combat . | . . . . Robot Hacks Applied . | . . . . Relay Couplers Released . | . . . . Robots Rewired . | . . . . Allies Hacked . | . . . . Hacks Repelled . | . . . . Allies | -11 -10 -9 -8 -------- Run | Scr Mat Mat Mat Total Allies . | . . . . Largest Group . | . . . . Highest-Rated Group . | . . . . Highest-Rated Ally . | . . . . Total Orders . | . . . . Ally Attacks . | . . . . Total Damage . | . . . . Kills . | . . . . Allies Corrupted . | . . . . Allies Melted . | . . . . Intel | -11 -10 -9 -8 ------- Run | Scr Mat Mat Mat Robot Analysis Total . | . . . . Derelict Logs Recovered . | . . . . Drone Launches . | . . . . Drone Recoveries . | . . . . Exploration | -11 -10 -9 -8 ------------- Run | Scr Mat Mat Mat Turns Passed 1955 | 50 361 906 638 Spaces Moved 799 | 37 190 384 188 Core 14 | 9 . . 5 Treads . | . . . . Legs 785 | 28 190 384 183 Wheels . | . . . . Hover . | . . . . Flight . | . . . . Fastest Speed 50 | 50 120 180 180 Average Speed 185 | 102 164 180 233 Slowest Speed 1200 | 120 180 180 1200 Overloaded Moves . | . . . . Propulsion Burnouts . | . . . . Robots Hopped . | . . . . Cave-ins Triggered . | . . . . Exploration Rate (%) 22 | 3 34 28 24 Regions Visited 3 Branch Regions . Pre-discovered Areas . | . . . . Known Exits Taken . | . . . . Unknown Exits Taken 3 | 1 1 1 . Scrap Searched . | . . . . Spaces Dug 5 | . . . 5 Terrain Destroyed 185 | . . 13 172 Melee . | . . . . Projectile . | . . . . AOE 185 | . . 13 172 Actions | -11 -10 -9 -8 --------- Run | Scr Mat Mat Mat Total 1131 | 49 214 569 299 Wait 171 | . 2 137 32 Move 796 | 36 189 383 188 Hop . | . . . . Pick Up 38 | 8 7 19 4 Fast Attach . | . . . . Attach 27 | 5 2 7 13 Detach . | . . . . Swap 1 | . . 1 . Drop 9 | . 1 7 1 Fire 89 | . 13 15 61 Melee . | . . . . Ram . | . . . . Kick . | . . . . Crush . | . . . . Escape Stasis . | . . . . Rewire . | . . . . Trap . | . . . . Miscellaneous . | . . . . Route ------- -11/Scrapyard -10/Materials -9/Materials -8/Materials History --------- Turn | Location | Event 7 | -11/Scrapyard | Discovered new exit (range 16) 51 | -11/Scrapyard | Entered Materials 312 | -10/Materials | Build established: Mutant 374 | -10/Materials | Discovered new exit (range 12) 412 | -10/Materials | Entered another Materials area 412 | -9/Materials | Evolved 2 slots: Weapon x2 455 | -9/Materials | Repaired Aluminum Leg 483 | -9/Materials | Repaired Assault Rifle 511 | -9/Materials | Repaired Ion Engine 539 | -9/Materials | Repaired Assault Rifle 713 | -9/Materials | Build established: Skirmisher 994 | -9/Materials | Repaired Aluminum Leg 1277 | -9/Materials | Discovered new exit (range 15) 1318 | -9/Materials | Entered another Materials area 1318 | -8/Materials | Evolved 2 slots: Utility x2 1607 | -8/Materials | Build established: Tank 1850 | -8/Materials | Core integrity fell below 50% 1892 | -8/Materials | Lost 18 parts (2p5n3u8w) 1912 | -8/Materials | Core integrity fell below 20% 1956 | -8/Materials | Destroyed by H-55 Commando with Gauss Rifle Last Messages --------------- 01911_ U-05 Engineer lays Concrete. 01911_ Penetrated by Slug. 01912_ U-05 Engineer lays Concrete. 01914_ Penetrated by Slug. 01914_ K-01 Serf collects debris. 01915_ U-05 Engineer lays Concrete. 01919_ K-01 Serf collects debris. 01919_ U-05 Engineer lays Concrete. 01919_ Penetrated by Slug. 01920_ U-05 Engineer lays Concrete. 01932_ Slug penetrates Wall. 01933_ U-05 Engineer builds a Wall. 01935_ Slug penetrates Wall. 01937_ U-05 Engineer builds a Wall. 01938_ Slug penetrates Wall. 01938_ Lgt. Deuterium Engine destroyed. 01941_ Slug penetrates Wall. 01948_ U-05 Engineer lays Concrete. 01950_ Penetrated by Slug. [Achievement: 5k Club] Map ----- +----------------------------------------------------+ | ?????????????????????????????????????????????????? | | ?????????????????????????????????????????????????? | | ???????????? ??????????????????????????????????? | | ??????????? ]???????????????????????????????? | | ??????????? ????????????????????????????? | | ??????????? "??? ???????????????????????? | | ??????????? %= "?? ??????????????????????? | | ?????????## [% """ #??????????????????????? | | ????????## #% " #??????????????????????? | | ???????## ]%" #??????????????????????? | | ???????# # ]" "" #??????????????????????? | | ???????# ## ]] ! "" #??????????????????????? | | ????????# % % "" #??????????????????????? | | ????????# # #??????????????????????? | | ????????# # [ #??????????????????????? | | ???###### # " " #??????????????????????? | | #### ## % #??????????????????????? | | #??????????????????????? | | T #??????????????????????? | | #??????????????????????? | | #### ####### ###### ##?????????????????????? | | ???## ####???## # ###############???????? | | ????# # "??? # # r ? | | ????# # ??" #### % ? | | ????# +?? " """ #??# %%h % ? | | ????# #? """ #??# @ ################## ##?? | | #???# # """ ???#######?????????????????????? | | #### # ???????????????????????????????? | | # ??? ????????????????????????????????? | | #?????? ????????????????????????????????? | | #??????# ????????????????????????????????? | | ###+#####?????##????????????????????????????????? | | ## #???????????????????????????????????????? | | ## """ #???????????????????????????????????????? | | ## "T" #???????????????????????????????????????? | | ## #???????????????????????????????????????? | | ## ! #???????????????????????????????????????? | | ###/#######??????????????????????????????????????? | | # #??????????????????????????????????????? | | # ! #??????????????????????????????????????? | | # #??????????????????????????????????????? | | # #??????????????????????????????????????? | | + " #??????????????????????????????????????? | | # " #??????????????????????????????????????? | | # " =! ##?????????????????????????????????????? | | # #?????????????????????????????????????? | | ### # #?????????????????????????????????????? | | ### # #?????????????????????????????????????? | | # * # #?????????????????????????????????????? | | + * # #?????????????????????????????????????? | +----------------------------------------------------+ Best States ------------- Heat Dissipation 31 Energy Generation 14 Energy Capacity 250 Matter Stores 300 Matter Capacity 300 Sight Range 16 Robot Scan Range 13 Terrain Scan Density 10 Armor Coverage 600 Resistance: KI 20 Resistance: TH 20 Resistance: EX 20 Resistance: EM 20 Resistance: I 20 Resistance: S 20 Resistance: P 20 Evasion (%) 40 Item Schematics ----------------- None Robot Schematics ------------------ None Fabricated ------------ Nothing Alien Tech Used ----------------- None Achievements -------------- 5k Club Challenges ------------ None Game ------ Seed ArchitectDisruptionRegulator Manual? 0 Play Time 00:25:44 Cumulative 12.2 hours Start 2019.10.27 @ 21:30:49 End 2019.10.27 @ 21:53:54 Sessions 1 Manual Loads 0 Difficulty Adventurer Special Mode None Game No. 24 Rogue 14 Adventurer 5 Explorer 0 Win Type - Total 0 Types 0/0/0/0/0/0/0 Lore% 8 Gallery% 18 Achievement% 11 Wizard Run 0 Options --------- ASCII 0 Keyboard 0 Movement Numpad Keybinds 0 Fullscreen 1 Font 18/Terminus Map View 76x50 Tactical HUD 1 Map Filters NONE Filters NONE Steam 1 RUN: 90352e3d-cf0c-4d32-b5a3-3df1368c797c